[Event "Titled Tuesday Blitz February 22 Early 2022"]
[White "Hess, Robert"]
[Black "Melian, Juan Sebastian"]
[WhiteFideId "2022036"]
[BlackFideId "3706575"]
[WhiteElo "2557"]
[BlackElo "1842"]
[Result "1-0"]
[Round "11"]
[TimeControl "180+1"]
[Date "2022.02.22"]
[WhiteClock "0:00:06"]
[BlackClock "0:00:02"]

1. b3 {[%clk 0:03:00]}  e5 {[%clk 0:02:56]} 2. Bb2 {[%clk 0:02:53]}  Nc6 {[%clk 0:02:57]} 3. d3 {[%clk 0:02:53]}  g6 {[%clk 0:02:57]} 4. Nd2 {[%clk 0:02:54]}  Bg7 {[%clk 0:02:57]} 5. e3 {[%clk 0:02:43]}  Nge7 {[%clk 0:02:56]} 6. Ne2 {[%clk 0:02:39]}  O-O {[%clk 0:02:55]} 7. h4 {[%clk 0:02:40]}  h6 {[%clk 0:02:55]} 8. e4 {[%clk 0:02:39]}  d5 {[%clk 0:02:55]} 9. Ng3 {[%clk 0:02:38]}  Be6 {[%clk 0:02:54]} 10. h5 {[%clk 0:02:39]}  g5 {[%clk 0:02:53]} 11. Be2 {[%clk 0:02:39]}  f5 {[%clk 0:02:52]} 12. exf5 {[%clk 0:02:34]}  Nxf5 {[%clk 0:02:53]} 13. Bg4 {[%clk 0:02:34]}  Qd7 {[%clk 0:02:50]} 14. Nxf5 {[%clk 0:02:11]}  Bxf5 {[%clk 0:02:50]} 15. Bxf5 {[%clk 0:02:11]}  Qxf5 {[%clk 0:02:50]} 16. Qf3 {[%clk 0:02:07]}  Qe6 {[%clk 0:02:24]} 17. Qe3 {[%clk 0:02:02]}  Rae8 {[%clk 0:02:16]} 18. O-O-O {[%clk 0:02:01]}  Qf7 {[%clk 0:02:01]} 19. f3 {[%clk 0:01:55]}  Qf4 {[%clk 0:01:58]} 20. Qc5 {[%clk 0:01:11]}  Qf7 {[%clk 0:01:41]} 21. Kb1 {[%clk 0:01:08]}  Qd7 {[%clk 0:01:35]} 22. a3 {[%clk 0:00:49]}  Rf7 {[%clk 0:01:27]} 23. Nf1 {[%clk 0:00:44]}  a6 {[%clk 0:01:10]} 24. Ne3 {[%clk 0:00:44]}  Rd8 {[%clk 0:01:07]} 25. Ng4 {[%clk 0:00:43]}  Qd6 {[%clk 0:01:00]} 26. Qxd6 {[%clk 0:00:38]}  Rxd6 {[%clk 0:01:01]} 27. b4 {[%clk 0:00:38]}  Re6 {[%clk 0:00:50]} 28. c4 {[%clk 0:00:38]}  dxc4 {[%clk 0:00:44]} 29. dxc4 {[%clk 0:00:38]}  e4 {[%clk 0:00:45]} 30. Rhf1 {[%clk 0:00:20]}  exf3 {[%clk 0:00:37]} 31. Rxf3 {[%clk 0:00:21]}  Rxf3 {[%clk 0:00:37]} 32. gxf3 {[%clk 0:00:21]}  Bxb2 {[%clk 0:00:37]} 33. Kxb2 {[%clk 0:00:20]}  Ne5 {[%clk 0:00:19]} 34. Nxe5 {[%clk 0:00:09]}  Rxe5 {[%clk 0:00:20]} 35. Rd7 {[%clk 0:00:08]}  Re2+ {[%clk 0:00:10]} 36. Kc3 {[%clk 0:00:04]}  Re3+ {[%clk 0:00:10]} 37. Kd4 {[%clk 0:00:04]}  Rxa3 {[%clk 0:00:09]} 38. Rxc7 {[%clk 0:00:04]}  b6 {[%clk 0:00:07]} 39. Rc6 {[%clk 0:00:04]}  a5 {[%clk 0:00:07]} 40. Rxb6 {[%clk 0:00:04]}  axb4 {[%clk 0:00:07]} 41. c5 {[%clk 0:00:03]}  Rxf3 {[%clk 0:00:05]} 42. c6 {[%clk 0:00:04]}  Rf7 {[%clk 0:00:02]} 43. Rb8+ {[%clk 0:00:04]}  Kg7 {[%clk 0:00:02]} 44. Rb7 {[%clk 0:00:04]}  b3 {[%clk 0:00:02]} 45. Rxb3 {[%clk 0:00:04]}  Kf6 {[%clk 0:00:02]} 46. Rf3+ {[%clk 0:00:04]}  Ke6 {[%clk 0:00:02]} 47. Rxf7 {[%clk 0:00:05]}  Kxf7 {[%clk 0:00:02]} 48. c7 {[%clk 0:00:06]} 1-0


[Site "https://www.chess.com"]

[Event "Titled Tuesday Blitz February 22 Early 2022"]
[White "Hua, Lefong"]
[Black "Krylov, Ivan"]
[WhiteFideId "2602253"]
[BlackFideId "24128066"]
[WhiteElo "2574"]
[BlackElo "2258"]
[Result "1-0"]
[Round "11"]
[TimeControl "180+1"]
[Date "2022.02.22"]
[WhiteClock "0:02:22"]
[BlackClock "0:01:54"]

1. d4 {[%clk 0:03:00]}  d5 {[%clk 0:02:56]} 2. c4 {[%clk 0:03:01]}  e6 {[%clk 0:02:55]} 3. Nc3 {[%clk 0:03:01]}  Nf6 {[%clk 0:02:56]} 4. cxd5 {[%clk 0:03:01]}  exd5 {[%clk 0:02:55]} 5. Bg5 {[%clk 0:03:02]}  c6 {[%clk 0:02:55]} 6. e3 {[%clk 0:03:02]}  Nbd7 {[%clk 0:02:55]} 7. Bd3 {[%clk 0:03:02]}  Be7 {[%clk 0:02:56]} 8. Qc2 {[%clk 0:03:01]}  O-O {[%clk 0:02:56]} 9. Nge2 {[%clk 0:03:01]}  Re8 {[%clk 0:02:56]} 10. O-O {[%clk 0:03:02]}  Nf8 {[%clk 0:02:57]} 11. f3 {[%clk 0:03:01]}  g6 {[%clk 0:02:55]} 12. Rad1 {[%clk 0:02:55]}  c5 {[%clk 0:02:52]} 13. dxc5 {[%clk 0:02:51]}  Ne6 {[%clk 0:02:51]} 14. Bxf6 {[%clk 0:02:44]}  Bxf6 {[%clk 0:02:49]} 15. Bb5 {[%clk 0:02:44]}  Nxc5 {[%clk 0:02:24]} 16. Bxe8 {[%clk 0:02:38]}  Qxe8 {[%clk 0:02:25]} 17. Nxd5 {[%clk 0:02:36]}  Be7 {[%clk 0:02:17]} 18. Nc7 {[%clk 0:02:33]}  Qc6 {[%clk 0:02:03]} 19. Nxa8 {[%clk 0:02:31]}  Be6 {[%clk 0:02:02]} 20. b4 {[%clk 0:02:26]}  Bf5 {[%clk 0:01:54]} 21. e4 {[%clk 0:02:22]} 1-0


[Site "https://www.chess.com"]

[Event "Titled Tuesday Blitz February 22 Early 2022"]
[White "Iskusnyh, Sergei"]
[Black "Chigaev, Maksim"]
[WhiteFideId "4120027"]
[BlackFideId "4108116"]
[WhiteElo "2492"]
[BlackElo "2502"]
[Result "0-1"]
[Round "11"]
[TimeControl "180+1"]
[Date "2022.02.22"]
[WhiteClock "0:00:01"]
[BlackClock "0:00:03"]

1. d4 {[%clk 0:03:00]}  Nf6 {[%clk 0:02:58]} 2. c4 {[%clk 0:03:00]}  e6 {[%clk 0:02:58]} 3. g3 {[%clk 0:02:59]}  d5 {[%clk 0:02:55]} 4. Nf3 {[%clk 0:02:59]}  Be7 {[%clk 0:02:54]} 5. Bg2 {[%clk 0:02:58]}  O-O {[%clk 0:02:54]} 6. O-O {[%clk 0:02:58]}  dxc4 {[%clk 0:02:54]} 7. Qa4 {[%clk 0:02:58]}  a6 {[%clk 0:02:50]} 8. Qxc4 {[%clk 0:02:58]}  b5 {[%clk 0:02:50]} 9. Qc2 {[%clk 0:02:58]}  Bb7 {[%clk 0:02:51]} 10. Bd2 {[%clk 0:02:58]}  Be4 {[%clk 0:02:45]} 11. Qc1 {[%clk 0:02:56]}  Bb7 {[%clk 0:02:45]} 12. Bf4 {[%clk 0:02:51]}  Bd6 {[%clk 0:02:44]} 13. Nbd2 {[%clk 0:02:45]}  Nbd7 {[%clk 0:02:29]} 14. Nb3 {[%clk 0:02:44]}  Bd5 {[%clk 0:02:09]} 15. Rd1 {[%clk 0:02:31]}  Rc8 {[%clk 0:01:49]} 16. Nc5 {[%clk 0:02:26]}  a5 {[%clk 0:01:37]} 17. Ne5 {[%clk 0:01:44]}  Bxg2 {[%clk 0:01:24]} 18. Kxg2 {[%clk 0:01:43]}  Qe8 {[%clk 0:01:09]} 19. Ncxd7 {[%clk 0:00:56]}  Nxd7 {[%clk 0:01:07]} 20. Nc6 {[%clk 0:00:57]}  a4 {[%clk 0:00:44]} 21. Qc2 {[%clk 0:00:46]}  Bxf4 {[%clk 0:00:28]} 22. gxf4 {[%clk 0:00:47]}  Nb6 {[%clk 0:00:28]} 23. Qc5 {[%clk 0:00:36]}  Nd5 {[%clk 0:00:26]} 24. e3 {[%clk 0:00:35]}  f6 {[%clk 0:00:22]} 25. Qc2 {[%clk 0:00:31]}  Kh8 {[%clk 0:00:20]} 26. Kh1 {[%clk 0:00:31]}  Qh5 {[%clk 0:00:19]} 27. Rg1 {[%clk 0:00:29]}  Rce8 {[%clk 0:00:05]} 28. Qd1 {[%clk 0:00:28]}  Qf5 {[%clk 0:00:04]} 29. Qg4 {[%clk 0:00:26]}  Qxg4 {[%clk 0:00:03]} 30. Rxg4 {[%clk 0:00:26]}  Nb6 {[%clk 0:00:03]} 31. b3 {[%clk 0:00:25]}  h6 {[%clk 0:00:02]} 32. Rc1 {[%clk 0:00:23]}  g5 {[%clk 0:00:02]} 33. fxg5 {[%clk 0:00:20]}  fxg5 {[%clk 0:00:02]} 34. Kg1 {[%clk 0:00:19]}  Nd7 {[%clk 0:00:02]} 35. Re4 {[%clk 0:00:18]}  Rf6 {[%clk 0:00:01]} 36. Ne5 {[%clk 0:00:17]}  Nxe5 {[%clk 0:00:02]} 37. Rxe5 {[%clk 0:00:17]}  axb3 {[%clk 0:00:02]} 38. axb3 {[%clk 0:00:17]}  Ref8 {[%clk 0:00:03]} 39. Rc2 {[%clk 0:00:16]}  b4 {[%clk 0:00:02]} 40. h4 {[%clk 0:00:14]}  gxh4 {[%clk 0:00:02]} 41. f4 {[%clk 0:00:15]}  Rg6+ {[%clk 0:00:02]} 42. Rg2 {[%clk 0:00:13]}  Rfg8 {[%clk 0:00:03]} 43. Rxg6 {[%clk 0:00:13]}  Rxg6+ {[%clk 0:00:03]} 44. Kh2 {[%clk 0:00:14]}  Kg7 {[%clk 0:00:04]} 45. Rc5 {[%clk 0:00:14]}  Kf6 {[%clk 0:00:04]} 46. Rxc7 {[%clk 0:00:14]}  Kf5 {[%clk 0:00:05]} 47. Rc4 {[%clk 0:00:12]}  Rg3 {[%clk 0:00:04]} 48. Rxb4 {[%clk 0:00:11]}  Rxe3 {[%clk 0:00:04]} 49. Rb5+ {[%clk 0:00:12]}  Kg4 {[%clk 0:00:05]} 50. Re5 {[%clk 0:00:09]}  Kxf4 {[%clk 0:00:03]} 51. Rxe3 {[%clk 0:00:06]}  Kxe3 {[%clk 0:00:04]} 52. Kh3 {[%clk 0:00:06]}  Kxd4 {[%clk 0:00:04]} 53. Kxh4 {[%clk 0:00:07]}  e5 {[%clk 0:00:05]} 54. Kg4 {[%clk 0:00:01]}  e4 {[%clk 0:00:04]} 55. Kf4 {[%clk 0:00:01]}  e3 {[%clk 0:00:03]} 0-1


[Site "https://www.chess.com"]

[Event "Titled Tuesday Blitz February 22 Early 2022"]
[White "Jiang, Brian"]
[Black "Rodchenkov, Vitaly"]
[WhiteFideId "2627922"]
[BlackFideId "4152964"]
[WhiteElo "2387"]
[BlackElo "2337"]
[Result "1-0"]
[Round "11"]
[TimeControl "180+1"]
[Date "2022.02.22"]
[WhiteClock "0:00:12"]
[BlackClock "0:00:13"]

1. d4 {[%clk 0:03:00]}  Nf6 {[%clk 0:02:58]} 2. c4 {[%clk 0:03:01]}  e6 {[%clk 0:02:58]} 3. g3 {[%clk 0:03:01]}  d5 {[%clk 0:02:57]} 4. Bg2 {[%clk 0:03:01]}  Be7 {[%clk 0:02:57]} 5. Nf3 {[%clk 0:03:01]}  O-O {[%clk 0:02:57]} 6. O-O {[%clk 0:03:01]}  b6 {[%clk 0:02:57]} 7. Nc3 {[%clk 0:02:49]}  Bb7 {[%clk 0:02:55]} 8. Ne5 {[%clk 0:02:45]}  Na6 {[%clk 0:02:54]} 9. Qa4 {[%clk 0:02:38]}  c5 {[%clk 0:02:54]} 10. cxd5 {[%clk 0:02:34]}  exd5 {[%clk 0:02:53]} 11. Rd1 {[%clk 0:02:24]}  Re8 {[%clk 0:02:52]} 12. Nc6 {[%clk 0:02:17]}  Qd7 {[%clk 0:02:14]} 13. Nxe7+ {[%clk 0:02:17]}  Qxe7 {[%clk 0:02:13]} 14. Bg5 {[%clk 0:02:13]}  cxd4 {[%clk 0:02:06]} 15. Qxd4 {[%clk 0:02:11]}  Rad8 {[%clk 0:02:05]} 16. e3 {[%clk 0:01:56]}  Nc7 {[%clk 0:02:01]} 17. Rac1 {[%clk 0:01:53]}  Ne6 {[%clk 0:01:59]} 18. Bxf6 {[%clk 0:01:54]}  gxf6 {[%clk 0:01:42]} 19. Qg4+ {[%clk 0:01:50]}  Kh8 {[%clk 0:01:42]} 20. Bxd5 {[%clk 0:01:47]}  Rg8 {[%clk 0:01:15]} 21. Qf3 {[%clk 0:01:34]}  Ng5 {[%clk 0:01:13]} 22. Qf5 {[%clk 0:01:32]}  Bc8 {[%clk 0:01:05]} 23. Qc2 {[%clk 0:01:20]}  Bg4 {[%clk 0:01:00]} 24. Rd4 {[%clk 0:01:10]}  Bf3 {[%clk 0:00:58]} 25. Kf1 {[%clk 0:00:45]}  Qe5 {[%clk 0:00:24]} 26. Bxf3 {[%clk 0:00:36]}  Nxf3 {[%clk 0:00:23]} 27. Rxd8 {[%clk 0:00:28]}  Rxd8 {[%clk 0:00:22]} 28. Kg2 {[%clk 0:00:25]}  Ng5 {[%clk 0:00:20]} 29. h4 {[%clk 0:00:18]}  Ne6 {[%clk 0:00:19]} 30. Rd1 {[%clk 0:00:18]}  Rg8 {[%clk 0:00:19]} 31. Rd5 {[%clk 0:00:17]}  Qc7 {[%clk 0:00:18]} 32. Rh5 {[%clk 0:00:15]}  Rg7 {[%clk 0:00:18]} 33. Qf5 {[%clk 0:00:14]}  Qb7+ {[%clk 0:00:18]} 34. e4 {[%clk 0:00:13]}  Nc5 {[%clk 0:00:16]} 35. Nd5 {[%clk 0:00:12]}  Qc6 {[%clk 0:00:14]} 36. Nxf6 {[%clk 0:00:12]}  Ne6 {[%clk 0:00:13]} 37. Rxh7+ {[%clk 0:00:12]} 1-0


[Site "https://www.chess.com"]

[Event "Titled Tuesday Blitz February 22 Early 2022"]
[White "Jobava, Baadur"]
[Black "Indjic, Aleksandar"]
[WhiteFideId "13601520"]
[BlackFideId "911925"]
[WhiteElo "2617"]
[BlackElo "2616"]
[Result "1-0"]
[Round "11"]
[TimeControl "180+1"]
[Date "2022.02.22"]
[WhiteClock "0:00:04"]
[BlackClock "0:00:01"]

1. e4 {[%clk 0:03:00]}  c5 {[%clk 0:03:00]} 2. Nf3 {[%clk 0:03:00]}  Nc6 {[%clk 0:03:00]} 3. Bb5 {[%clk 0:02:59]}  e6 {[%clk 0:02:59]} 4. O-O {[%clk 0:02:57]}  Nge7 {[%clk 0:02:58]} 5. Re1 {[%clk 0:02:57]}  Nd4 {[%clk 0:02:56]} 6. Nxd4 {[%clk 0:02:55]}  cxd4 {[%clk 0:02:56]} 7. c3 {[%clk 0:02:56]}  a6 {[%clk 0:02:57]} 8. Bf1 {[%clk 0:02:49]}  Nc6 {[%clk 0:02:57]} 9. cxd4 {[%clk 0:02:46]}  Nxd4 {[%clk 0:02:56]} 10. Nc3 {[%clk 0:02:46]}  Bc5 {[%clk 0:02:55]} 11. d3 {[%clk 0:02:46]}  d6 {[%clk 0:02:44]} 12. Be3 {[%clk 0:02:46]}  O-O {[%clk 0:02:38]} 13. Rc1 {[%clk 0:02:46]}  e5 {[%clk 0:02:36]} 14. Ne2 {[%clk 0:02:18]}  Qb6 {[%clk 0:02:32]} 15. Rb1 {[%clk 0:02:10]}  a5 {[%clk 0:02:31]} 16. Nc3 {[%clk 0:02:07]}  Be6 {[%clk 0:02:21]} 17. Na4 {[%clk 0:02:07]}  Qd8 {[%clk 0:02:11]} 18. Nxc5 {[%clk 0:02:07]}  dxc5 {[%clk 0:02:12]} 19. a3 {[%clk 0:02:05]}  a4 {[%clk 0:02:11]} 20. Qd2 {[%clk 0:02:04]}  b6 {[%clk 0:02:10]} 21. Qc3 {[%clk 0:02:01]}  Qd6 {[%clk 0:02:09]} 22. Rbc1 {[%clk 0:01:50]}  Rfd8 {[%clk 0:02:08]} 23. h3 {[%clk 0:01:49]}  f6 {[%clk 0:02:07]} 24. Kh2 {[%clk 0:01:49]}  h6 {[%clk 0:02:06]} 25. Red1 {[%clk 0:01:49]}  Rd7 {[%clk 0:02:06]} 26. Kg1 {[%clk 0:01:48]}  Rad8 {[%clk 0:02:05]} 27. Re1 {[%clk 0:01:48]}  Nb3 {[%clk 0:02:04]} 28. Rcd1 {[%clk 0:01:48]}  Qb8 {[%clk 0:02:02]} 29. Qc2 {[%clk 0:01:45]}  Qb7 {[%clk 0:01:57]} 30. Qc3 {[%clk 0:01:43]}  Qb8 {[%clk 0:01:55]} 31. Be2 {[%clk 0:01:42]}  Kh7 {[%clk 0:01:53]} 32. Bf1 {[%clk 0:01:42]}  Qd6 {[%clk 0:01:51]} 33. Be2 {[%clk 0:01:42]}  Rc7 {[%clk 0:01:40]} 34. Bf1 {[%clk 0:01:42]}  Bd7 {[%clk 0:01:40]} 35. Qc4 {[%clk 0:01:39]}  Qe7 {[%clk 0:01:40]} 36. Be2 {[%clk 0:01:37]}  Qe8 {[%clk 0:01:40]} 37. Qc3 {[%clk 0:01:35]}  Bb5 {[%clk 0:01:38]} 38. Bg4 {[%clk 0:01:31]}  Bd7 {[%clk 0:01:28]} 39. Be2 {[%clk 0:01:29]}  Rc6 {[%clk 0:01:28]} 40. f4 {[%clk 0:01:26]}  Rd6 {[%clk 0:01:27]} 41. fxe5 {[%clk 0:01:25]}  Qxe5 {[%clk 0:01:27]} 42. Rf1 {[%clk 0:01:19]}  Bb5 {[%clk 0:01:24]} 43. Bf4 {[%clk 0:01:13]}  Qxc3 {[%clk 0:01:22]} 44. bxc3 {[%clk 0:01:14]}  R6d7 {[%clk 0:01:16]} 45. Rf3 {[%clk 0:01:11]}  Kh8 {[%clk 0:01:13]} 46. e5 {[%clk 0:01:10]}  fxe5 {[%clk 0:01:11]} 47. Bxe5 {[%clk 0:01:11]}  Re7 {[%clk 0:01:11]} 48. Re3 {[%clk 0:01:05]}  Rd5 {[%clk 0:00:59]} 49. d4 {[%clk 0:00:59]}  Bxe2 {[%clk 0:00:59]} 50. Rxe2 {[%clk 0:00:59]}  cxd4 {[%clk 0:00:59]} 51. cxd4 {[%clk 0:01:00]}  Kh7 {[%clk 0:00:52]} 52. Kf2 {[%clk 0:00:54]}  Rf7+ {[%clk 0:00:49]} 53. Ke3 {[%clk 0:00:52]}  Rfd7 {[%clk 0:00:46]} 54. Ree1 {[%clk 0:00:44]}  b5 {[%clk 0:00:43]} 55. g4 {[%clk 0:00:40]}  Na5 {[%clk 0:00:43]} 56. Ke4 {[%clk 0:00:38]}  Nc6 {[%clk 0:00:43]} 57. Rb1 {[%clk 0:00:30]}  Na5 {[%clk 0:00:29]} 58. Rbc1 {[%clk 0:00:23]}  Nb3 {[%clk 0:00:28]} 59. Rcd1 {[%clk 0:00:19]}  Na5 {[%clk 0:00:24]} 60. Rd3 {[%clk 0:00:17]}  Nc6 {[%clk 0:00:20]} 61. Rc3 {[%clk 0:00:14]}  Nxd4 {[%clk 0:00:11]} 62. Rd3 {[%clk 0:00:13]}  Nf3 {[%clk 0:00:08]} 63. Rxd5 {[%clk 0:00:13]}  Rxd5 {[%clk 0:00:09]} 64. Kxd5 {[%clk 0:00:14]}  Nxe1 {[%clk 0:00:08]} 65. Bd6 {[%clk 0:00:13]}  Nc2 {[%clk 0:00:07]} 66. Kc6 {[%clk 0:00:11]}  b4 {[%clk 0:00:07]} 67. axb4 {[%clk 0:00:11]}  a3 {[%clk 0:00:08]} 68. Kc5 {[%clk 0:00:09]}  Ne1 {[%clk 0:00:04]} 69. Kc4 {[%clk 0:00:06]}  a2 {[%clk 0:00:04]} 70. Be5 {[%clk 0:00:06]}  Nf3 {[%clk 0:00:03]} 71. Ba1 {[%clk 0:00:06]}  Nd2+ {[%clk 0:00:03]} 72. Kc3 {[%clk 0:00:06]}  Ne4+ {[%clk 0:00:03]} 73. Kb3 {[%clk 0:00:06]}  Kg6 {[%clk 0:00:03]} 74. Kxa2 {[%clk 0:00:06]}  Kf7 {[%clk 0:00:04]} 75. Kb3 {[%clk 0:00:06]}  g5 {[%clk 0:00:04]} 76. Kc4 {[%clk 0:00:06]}  Nf2 {[%clk 0:00:04]} 77. b5 {[%clk 0:00:06]}  Ke6 {[%clk 0:00:04]} 78. b6 {[%clk 0:00:04]}  Kd7 {[%clk 0:00:04]} 79. Kb5 {[%clk 0:00:04]}  Nd3 {[%clk 0:00:01]} 80. Bg7 {[%clk 0:00:04]}  Nf4 {[%clk 0:00:01]} 81. Bxh6 {[%clk 0:00:04]}  Nxh3 {[%clk 0:00:01]} 82. Ka6 {[%clk 0:00:04]} 1-0


[Site "https://www.chess.com"]

[Event "Titled Tuesday Blitz February 22 Early 2022"]
[White "Jodorcovsky Werjivker, Paulo"]
[Black "volunteers1998"]
[WhiteFideId "3700305"]
[WhiteElo "2075"]
[BlackElo "2258"]
[Result "1-0"]
[Round "11"]
[TimeControl "180+1"]
[Date "2022.02.22"]
[WhiteClock "0:00:13"]
[BlackClock "0:00:01"]

1. d4 {[%clk 0:03:00]}  f5 {[%clk 0:02:59]} 2. Bg5 {[%clk 0:02:59]}  h6 {[%clk 0:02:58]} 3. Bh4 {[%clk 0:02:59]}  c5 {[%clk 0:02:55]} 4. e3 {[%clk 0:02:57]}  Qb6 {[%clk 0:02:53]} 5. Nc3 {[%clk 0:02:52]}  cxd4 {[%clk 0:02:50]} 6. exd4 {[%clk 0:02:49]}  Qe6+ {[%clk 0:02:46]} 7. Be2 {[%clk 0:02:46]}  g5 {[%clk 0:02:43]} 8. d5 {[%clk 0:02:43]}  Qb6 {[%clk 0:02:39]} 9. Bh5+ {[%clk 0:02:32]}  Kd8 {[%clk 0:02:39]} 10. Nf3 {[%clk 0:02:26]}  gxh4 {[%clk 0:02:32]} 11. Ne5 {[%clk 0:02:15]}  Rh7 {[%clk 0:02:17]} 12. O-O {[%clk 0:02:14]}  Nf6 {[%clk 0:02:11]} 13. Bg6 {[%clk 0:02:10]}  Rg7 {[%clk 0:02:08]} 14. Bxf5 {[%clk 0:02:09]}  d6 {[%clk 0:02:05]} 15. Nc4 {[%clk 0:02:06]}  Qc5 {[%clk 0:02:00]} 16. Bd3 {[%clk 0:01:42]}  Bh3 {[%clk 0:01:51]} 17. Ne3 {[%clk 0:01:38]}  Nbd7 {[%clk 0:01:39]} 18. Qf3 {[%clk 0:01:37]}  Bg4 {[%clk 0:01:34]} 19. Nxg4 {[%clk 0:01:36]}  Rxg4 {[%clk 0:01:31]} 20. Bf5 {[%clk 0:01:36]}  Rg8 {[%clk 0:01:22]} 21. Be6 {[%clk 0:01:34]}  Rg5 {[%clk 0:01:20]} 22. b4 {[%clk 0:01:32]}  Qxb4 {[%clk 0:01:17]} 23. Rab1 {[%clk 0:01:32]}  Qc4 {[%clk 0:01:15]} 24. Rxb7 {[%clk 0:01:27]}  Ne5 {[%clk 0:01:10]} 25. Qe3 {[%clk 0:01:11]}  Nfg4 {[%clk 0:01:05]} 26. Qd2 {[%clk 0:00:56]}  Nf6 {[%clk 0:00:52]} 27. f4 {[%clk 0:00:51]}  Qc5+ {[%clk 0:00:50]} 28. Kh1 {[%clk 0:00:49]}  Nc4 {[%clk 0:00:50]} 29. Qd3 {[%clk 0:00:40]}  Rg7 {[%clk 0:00:46]} 30. Rfb1 {[%clk 0:00:40]}  Nb6 {[%clk 0:00:43]} 31. Na4 {[%clk 0:00:37]}  Qf2 {[%clk 0:00:40]} 32. Bh3 {[%clk 0:00:31]}  Rc8 {[%clk 0:00:34]} 33. Nxb6 {[%clk 0:00:27]}  axb6 {[%clk 0:00:33]} 34. R7xb6 {[%clk 0:00:22]}  Ng4 {[%clk 0:00:18]} 35. Rb8 {[%clk 0:00:17]}  Rxb8 {[%clk 0:00:15]} 36. Rxb8+ {[%clk 0:00:17]}  Kc7 {[%clk 0:00:13]} 37. Rb1 {[%clk 0:00:16]}  Qe3 {[%clk 0:00:11]} 38. Qc4+ {[%clk 0:00:14]}  Qc5 {[%clk 0:00:08]} 39. Qxc5+ {[%clk 0:00:12]}  dxc5 {[%clk 0:00:08]} 40. Rb5 {[%clk 0:00:10]}  Nf2+ {[%clk 0:00:05]} 41. Kg1 {[%clk 0:00:10]}  Nxh3+ {[%clk 0:00:05]} 42. Kf1 {[%clk 0:00:11]}  Nxf4 {[%clk 0:00:05]} 43. Rxc5+ {[%clk 0:00:11]}  Kd6 {[%clk 0:00:05]} 44. Rc4 {[%clk 0:00:12]}  Nxd5 {[%clk 0:00:05]} 45. Rd4 {[%clk 0:00:12]}  e5 {[%clk 0:00:05]} 46. Rd2 {[%clk 0:00:12]}  Rf7+ {[%clk 0:00:01]} 47. Rf2 {[%clk 0:00:13]}  Be7 {[%clk 0:00:02]} 48. Rxf7 {[%clk 0:00:13]}  Bg5 {[%clk 0:00:02]} 49. Rf8 {[%clk 0:00:12]}  Ne3+ {[%clk 0:00:02]} 50. Ke2 {[%clk 0:00:11]}  Nxc2 {[%clk 0:00:03]} 51. Rg8 {[%clk 0:00:12]}  Nb4 {[%clk 0:00:02]} 52. a4 {[%clk 0:00:12]}  Kc5 {[%clk 0:00:01]} 53. Rg6 {[%clk 0:00:13]}  Bf4 {[%clk 0:00:01]} 54. g3 {[%clk 0:00:13]} 1-0


[Site "https://www.chess.com"]

[Event "Titled Tuesday Blitz February 22 Early 2022"]
[White "Karabalis, Harilos"]
[Black "Galyas, Miklos"]
[WhiteFideId "4621808"]
[BlackFideId "707244"]
[WhiteElo "2168"]
[BlackElo "2409"]
[Result "0-1"]
[Round "11"]
[TimeControl "180+1"]
[Date "2022.02.22"]
[WhiteClock "0:00:05"]
[BlackClock "0:01:03"]

1. e4 {[%clk 0:03:00]}  d6 {[%clk 0:02:59]} 2. d4 {[%clk 0:02:59]}  g6 {[%clk 0:02:59]} 3. c3 {[%clk 0:02:58]}  Bg7 {[%clk 0:02:57]} 4. Nf3 {[%clk 0:02:58]}  Nf6 {[%clk 0:02:57]} 5. Bd3 {[%clk 0:02:58]}  O-O {[%clk 0:02:57]} 6. O-O {[%clk 0:02:57]}  Nc6 {[%clk 0:02:57]} 7. h3 {[%clk 0:02:55]}  e5 {[%clk 0:02:57]} 8. Re1 {[%clk 0:02:55]}  Nh5 {[%clk 0:02:56]} 9. Be3 {[%clk 0:02:37]}  h6 {[%clk 0:02:55]} 10. Qd2 {[%clk 0:02:35]}  g5 {[%clk 0:02:55]} 11. Na3 {[%clk 0:02:26]}  Nf4 {[%clk 0:02:54]} 12. Bf1 {[%clk 0:02:25]}  Qf6 {[%clk 0:02:51]} 13. dxe5 {[%clk 0:02:21]}  dxe5 {[%clk 0:02:49]} 14. Bxf4 {[%clk 0:02:20]}  gxf4 {[%clk 0:02:47]} 15. Rad1 {[%clk 0:02:13]}  a6 {[%clk 0:02:46]} 16. c4 {[%clk 0:02:06]}  Kh8 {[%clk 0:02:44]} 17. c5 {[%clk 0:02:00]}  Rg8 {[%clk 0:02:44]} 18. Nc4 {[%clk 0:01:58]}  Be6 {[%clk 0:02:38]} 19. Qc3 {[%clk 0:01:54]}  Nd4 {[%clk 0:02:11]} 20. Nxd4 {[%clk 0:01:32]}  exd4 {[%clk 0:02:10]} 21. Qf3 {[%clk 0:01:32]}  Rad8 {[%clk 0:02:08]} 22. b3 {[%clk 0:00:47]}  Qg5 {[%clk 0:02:07]} 23. Nb2 {[%clk 0:00:41]}  Qxc5 {[%clk 0:01:59]} 24. Nd3 {[%clk 0:00:34]}  Qg5 {[%clk 0:01:43]} 25. Nxf4 {[%clk 0:00:32]}  Be5 {[%clk 0:01:43]} 26. Nd3 {[%clk 0:00:26]}  f6 {[%clk 0:01:43]} 27. Kh1 {[%clk 0:00:13]}  Rg7 {[%clk 0:01:43]} 28. g3 {[%clk 0:00:12]}  Rdg8 {[%clk 0:01:42]} 29. Qg2 {[%clk 0:00:12]}  Qh5 {[%clk 0:01:35]} 30. f4 {[%clk 0:00:10]}  Rxg3 {[%clk 0:01:34]} 31. Qh2 {[%clk 0:00:08]}  Bxh3 {[%clk 0:01:25]} 32. Be2 {[%clk 0:00:06]}  Qh4 {[%clk 0:01:14]} 33. fxe5 {[%clk 0:00:06]}  Bg2+ {[%clk 0:01:03]} 34. Kg1 {[%clk 0:00:05]}  Rh3 {[%clk 0:01:03]} 0-1


[Site "https://www.chess.com"]